Cogmind - Beta 12 @@@ ROGUE MODE // 2023.12.10 @ 15:31:13 Player: zapruda Result: Destroyed by X-67 Chaingunner with Minigun Performance ------------- Evolutions (3) 1500 Regions Visited (5) 1000 Robots Destroyed (16) 80 Value Destroyed (369) 369 Prototype IDs (0) 0 Alien Tech Used (0) 0 Bonus (500) 500 TOTAL SCORE: 3449 Bonus ------- Entered DSFs 500 Cogmind --------- Core Integrity 0/700 Matter 145/300 Energy 62/100 System Corruption 1% Temperature Cool (0) Movement Core (50) Location -7/DSF Parts ------- > --- POWER (1) -------- (None) > --- PROPULSION (2) --- (None) > --- UTILITY (8) ------ Advanced Terrain Scan Processor Authchip [R/Combat] Authchip [Device] Authchip [Processor] > --- WEAPON (2) ------- (None) > --- INVENTORY (5) ---- Improved Cooling System Transmission Jammer Advanced ECM Suite Improved Utility Shielding Improved Datajack Peak State ------------ > --- POWER ------------ Light Deuterium Engine > --- PROPULSION ------- Flight Unit > --- UTILITY ---------- Small Storage Unit Advanced Terrain Scan Processor Improved Core Shielding Improved Core Shielding Improved Core Shielding Improved Utility Shielding > --- WEAPON ----------- Assault Cannon Grenade Launcher > --- INVENTORY -------- Improved Cooling System Transmission Jammer Advanced ECM Suite Improved Datajack [Rating: 32] Favorites ----------- Power Ion Engine Engine Ion Engine Propulsion Flight Unit Leg Aluminum Leg Wheel Compact Wheel Flight Unit Flight Unit Utility Small Storage Unit Device Reaction Control System Storage Small Storage Unit Processor Advanced Terrain Scan Processor Hackware Hacking Suite Protection Improved Core Shielding Weapon Assault Rifle Energy Gun EM Pulse Gun Ballistic Gun Assault Rifle Ballistic Cannon Assault Cannon Launcher Grenade Launcher Build | -11 -10 -9 -8 -7 -7 ------- Run | Jun Mat Mat Mat Fac DSF Slots Evolved 6 | . . 2 2 2 . Power . | . . . . . . Propulsion . | . . . . . . Utility 6 | . . 2 2 2 . Weapon . | . . . . . . Parts Attached 27 | . . 8 2 3 14 Power 2 | . . 1 . . 1 Engine 2 | . . 1 . . 1 Core . | . . . . . . Reactor . | . . . . . . Propulsion 6 | . . 5 . 1 . Treads . | . . . . . . Leg . | . . . . . . Wheel 2 | . . 2 . . . Hover . | . . . . . . Flight 4 | . . 3 . 1 . Utility 15 | . . 1 1 2 11 Device 3 | . . . . 2 1 Storage . | . . . . . . Processor 2 | . . . . . 2 Hackware 6 | . . 1 1 . 4 Protection 4 | . . . . . 4 Artifact . | . . . . . . Weapon 4 | . . 1 1 . 2 Energy Gun 1 | . . . 1 . . Energy Cannon . | . . . . . . Ballistic Gun 1 | . . 1 . . . Ballistic Cannon 1 | . . . . . 1 Launcher 1 | . . . . . 1 Special Weapon . | . . . . . . Impact Weapon . | . . . . . . Slashing Weapon . | . . . . . . Piercing Weapon . | . . . . . . Special Melee Weapon . | . . . . . . Unidentified Prototypes . | . . . . . . Parts Lost 12 | . . 3 1 1 7 Power . | . . . . . . Propulsion 3 | . . 2 . . 1 Utility 5 | . . . . 1 4 Weapon 4 | . . 1 1 . 2 Highest Loss Streak 5 | . . 1 1 1 5 To Critical Strikes . | . . . . . . Average Slot Usage (%) 57 | . 85 57 45 48 28 Engine 6 | . 14 8 . 3 1 Leg 7 | . 28 1 . . . Wheel 4 | . . 11 . . . Flight 7 | . . 5 18 14 3 Device 1 | . . . . 8 . Storage 9 | . 14 11 9 7 2 Hackware 4 | . . 1 9 12 1 Ballistic Gun 13 | . 28 18 8 . . Naked Turns . | . . . . . . Heaviest Build 14 | 14 14 14 8 8 12 Greatest Support 26 | 20 20 26 8 8 8 Greatest Overweight (x) 2 | . . 1 . . 2 Average Overweight (x) . | . . . . . . Largest Inventory Capacity 8 | . 8 8 8 8 8 Average Capacity 7 | . 8 8 8 8 6 Most Carried 8 | . 8 8 8 8 8 Average Carried 6 | . 7 5 7 7 5 Final Capacity 8 | 8 8 8 8 8 5 Final Carried 8 | 6 8 7 8 8 5 Class Distribution -------------------- 84% | Mutant 15% | Hacker-Mutant Dominant Class ---------------- Mutant | -10/Materials Mutant | -9/Materials Mutant | -8/Materials Hacker-Mutant | -7/Factory Mutant | -7/DSF Resources | -11 -10 -9 -8 -7 -7 ----------- Run | Jun Mat Mat Mat Fac DSF Matter Collected 567 | 200 55 310 . . 2 Remotely . | . . . . . . Salvage Created 595 | . 125 470 . . . Parts 41 | . 7 34 . . . Haulers Intercepted 3 | . 1 2 . . . Recyclers Shooed . | . . . . . . Parts Field Recycled . | . . . . . . Retrieved Matter . | . . . . . . Parts Self-Destructed . | . . . . . . Prevented . | . . . . . . Kills | -11 -10 -9 -8 -7 -7 ------- Run | Jun Mat Mat Mat Fac DSF Combat Hostiles Destroyed 12 | . 2 10 . . . Guns 12 | . 2 10 . . . Classes Destroyed 5 | . 3 2 . . . Hauler 3 | . 1 2 . . . Operator 1 | . 1 . . . . Swarmer 4 | . . 4 . . . Grunt 6 | . 2 4 . . . Sentry 2 | . . 2 . . . Best Kill Streak 9 | . 2 9 . . . Combat Bots Only 8 | . 2 8 . . . Max Kills in Single Turn 2 | . 1 2 . . . Gunslinging 1 | . . 1 . . . Exploded . | . . . . . . Melee . | . . . . . . Uniques/NPCs Destroyed . | . . . . . . Combat | -11 -10 -9 -8 -7 -7 -------- Run | Jun Mat Mat Mat Fac DSF Damage Taken 2017 | . 97 409 187 27 1297 Core 931 | . 11 112 99 10 699 Absorbed by Shields . | . . . . . . Redirected to Shielding 183 | . . . . . 183 Regen/Repaired (Parts) 18 | . . . . 18 . Core Remaining (%) 87 | 100 95 72 82 . . Volleys Fired 57 | . 17 39 . . 1 Largest 2 | . 2 2 . . 2 Hottest 74 | . 40 40 . . 74 Shots Fired 99 | . 34 63 . . 2 Gun 97 | . 34 63 . . . Cannon 1 | . . . . . 1 Launcher 1 | . . . . . 1 Special . | . . . . . . Kinetic 98 | . 34 63 . . 1 Thermal . | . . . . . . Explosive 1 | . . . . . 1 Electromagnetic . | . . . . . . Robot Hit Streak 9 | . 8 8 . . 9 Robot Miss Streak 3 | . 3 2 . . . Penetration Max . | . . . . . . Secondary Targets 2 | . . 2 . . . Max Gunslinging Chain 1 | . . 1 . . . Shots Hit Robots 67 | . 22 43 . . 2 Core Hits 29 | . 7 20 1 . 1 Critical Kills . | . . . . . . Critical Parts Destroyed . | . . . . . . Critical Strikes . | . . . . . . Melee Attacks . | . . . . . . Impact . | . . . . . . Slashing . | . . . . . . Piercing . | . . . . . . Sneak Attacks . | . . . . . . Combat Hostiles . | . . . . . . Follow-up Attacks . | . . . . . . Damage Inflicted 1015 | . 269 593 3 . 150 Guns 862 | . 269 593 . . . Cannons 26 | . . . . . 26 Explosions 124 | . . . . . 124 Melee . | . . . . . . Ramming 3 | . . . 3 . . Kinetic 888 | . 269 593 . . 26 Thermal . | . . . . . . Explosive 124 | . . . . . 124 Electromagnetic . | . . . . . . Impact . | . . . . . . Slashing . | . . . . . . Piercing . | . . . . . . Highest Corruption 1 | . . . . 1 1 Average Corruption 1 | . . . . 1 1 Corruption Purged . | . . . . . . Corruption Blocked . | . . . . . . Effects 2 | . . . . . 2 Heat Flow Errors 1 | . . . . . 1 Energy Discharges 1 | . . . . . 1 Overload Shots . | . . . . . . Overflow Damage . | . . . . . . Projectiles . | . . . . . . Explosions . | . . . . . . Melee . | . . . . . . Knockbacks 1 | . . . . . 1 Impact . | . . . . . . Kinetic 1 | . . . . . 1 Secondary . | . . . . . . Self-Inflicted Damage 1 | . . . 1 . . Shots . | . . . . . . Rammed 2 | . . . 2 . . Targets Rammed 2 | . . . 2 . . Kicked . | . . . . . . Crushed . | . . . . . . Highest Temperature 244 | . . 7 . . 244 Average Temperature 78 | . . 3 . . 138 Received Heat Transfer 255 | . 54 168 27 6 . Siege Activations . | . . . . . . Robots Corrupted . | . . . . . . Combat Hostiles . | . . . . . . Parts Fried . | . . . . . . Impact Corruptions . | . . . . . . Robots Melted . | . . . . . . Combat Hostiles . | . . . . . . Parts Melted . | . . . . . . Heat Transferred . | . . . . . . Parts Sabotaged . | . . . . . . Parts Stolen . | . . . . . . Parts Stripped . | . . . . . . Power Chain Reactions . | . . . . . . Missiles Intercepted . | . . . . . . Alert | -11 -10 -9 -8 -7 -7 ------- Run | Jun Mat Mat Mat Fac DSF Peak Influence 279 | . 77 261 279 153 100 Initial 126 | . . 32 109 126 100 Average 98 | . 25 120 163 137 67 Maximum Alert Level 1 | . . 1 1 . . Low Security (%) 88 | . 100 67 92 100 100 Level 1 11 | . . 32 7 . . Level 2 . | . . . . . . Level 3 . | . . . . . . Level 4 . | . . . . . . Level 5 . | . . . . . . High Security . | . . . . . . Max Security . | . . . . . . Squads Dispatched 4 | . 1 . . 2 1 Investigation 2 | . . . . 2 . Extermination . | . . . . . . Reinforcement 2 | . 1 . . . 1 Assault . | . . . . . . Garrison . | . . . . . . Intercept . | . . . . . . Searches Triggered . | . . . . . . Construction Impeded . | . . . . . . Haulers Reinforced . | . . . . . . Active Scanning Responses . | . . . . . . Cargo Convoy Interrupts . | . . . . . . Stealth | -11 -10 -9 -8 -7 -7 --------- Run | Jun Mat Mat Mat Fac DSF Distress Signals 2 | . . 1 1 . . Communications Jammed . | . . . . . . Distress Signals . | . . . . . . Times Spotted 49 | . 7 14 21 1 6 Peak Tracking Total 19 | . 3 9 19 1 5 Tactical Retreats 2 | . . . 1 . 1 Traps | -11 -10 -9 -8 -7 -7 ------- Run | Jun Mat Mat Mat Fac DSF Traps Triggered 1 | . . . . . 1 Indirectly . | . . . . . . Trap Hack Attempts . | . . . . . . Triggered . | . . . . . . Disarmed . | . . . . . . Reprogrammed . | . . . . . . Reused . | . . . . . . Traps Extracted . | . . . . . . Installed . | . . . . . . Triggered . | . . . . . . Machines | -11 -10 -9 -8 -7 -7 ---------- Run | Jun Mat Mat Mat Fac DSF Machines Disabled . | . . . . . . Max in Single Turn . | . . . . . . Machines Repaired . | . . . . . . Machines Sabotaged . | . . . . . . Overloaded Fab Kills . | . . . . . . Hacking | -11 -10 -9 -8 -7 -7 --------- Run | Jun Mat Mat Mat Fac DSF Machines Accessed 8 | . 1 1 . 6 . Terminals 6 | . 1 1 . 4 . Fabricators . | . . . . . . Repair Stations 1 | . . . . 1 . Recycling Units 1 | . . . . 1 . Scanalyzers . | . . . . . . Garrison Access . | . . . . . . Total Hacks 20 | . 2 1 . 17 . Successful 9 | . 1 1 . 7 . Failed 11 | . 1 . . 10 . Catastrophic 2 | . . . . 2 . Database Lockouts . | . . . . . . Manual 10 | . 2 1 . 7 . Terminals 14 | . 2 1 . 11 . Fabricators . | . . . . . . Repair Stations 4 | . . . . 4 . Recycling Units 2 | . . . . 2 . Scanalyzers . | . . . . . . Garrison Access . | . . . . . . Terminal Hacks 3 | . 1 . . 2 . Open DSF 1 | . . . . 1 . Machine Index 1 | . . . . 1 . Recall Investigation 1 | . 1 . . . . Fabricator Hacks . | . . . . . . Repair Station Hacks 3 | . . . . 3 . Scan Component 1 | . . . . 1 . Repair 1 | . . . . 1 . Refit 1 | . . . . 1 . Recycling Unit Hacks 1 | . . . . 1 . Retrieve Components 1 | . . . . 1 . Scanalyzer . | . . . . . . Garrison Access Hacks . | . . . . . . Unauthorized Hacks 2 | . . 1 . 1 . Terminals 2 | . . 1 . 1 . Assimilate 1 | . . 1 . . . Botnet 1 | . . . . 1 . Fabricators . | . . . . . . Repair Stations . | . . . . . . Recycling Units . | . . . . . . Scanalyzers . | . . . . . . Garrison Access . | . . . . . . Data Cores Recovered . | . . . . . . Used . | . . . . . . Hacking Detections 6 | . 1 . . 5 . Full Trace Events 2 | . . . . 2 . Feedback Events 2 | . . . . 2 . Corruption 1 | . . . . 1 . Hackware Fried 1 | . . . . 1 . Feedback Blocked . | . . . . . . Robot Schematics Acquired . | . . . . . . Robots Built . | . . . . . . Authchips . | . . . . . . Time . | . . . . . . Total Robot Build Rating . | . . . . . . Part Schematics Acquired . | . . . . . . Parts Built . | . . . . . . Authchips . | . . . . . . Time . | . . . . . . Total Part Build Rating . | . . . . . . Parts Repaired 1 | . . . . 1 . Time 13 | . . . . 13 . Parts Recycled . | . . . . . . Recycled Matter . | . . . . . . Retrieved Matter . | . . . . . . Retrieved Components . | . . . . . . Parts Scanalyzed . | . . . . . . Part Schematics Acquired . | . . . . . . Parts Damaged . | . . . . . . Bothacking | -11 -10 -9 -8 -7 -7 ------------ Run | Jun Mat Mat Mat Fac DSF Used RIF Installer . | . . . . . . Robots Hacked . | . . . . . . Non-combat . | . . . . . . Combat . | . . . . . . Robot Hacks Applied . | . . . . . . Relay Couplers Released . | . . . . . . Fabnet Peak Effective % . | . . . . . . Robots Rewired . | . . . . . . Allies Hacked . | . . . . . . Hacks Repelled . | . . . . . . Allies | -11 -10 -9 -8 -7 -7 -------- Run | Jun Mat Mat Mat Fac DSF Total Allies 1 | . . 1 . . . Largest Group 1 | . . 1 . . . Highest-Rated Group 10 | . . 10 . . . Highest-Rated Ally 10 | . . 10 . . . Total Orders . | . . . . . . Ally Attacks . | . . . . . . Total Damage . | . . . . . . Kills . | . . . . . . Allies Corrupted . | . . . . . . Allies Melted . | . . . . . . Intel | -11 -10 -9 -8 -7 -7 ------- Run | Jun Mat Mat Mat Fac DSF Robot Analysis Total . | . . . . . . Derelict Logs Recovered . | . . . . . . Drone Launches . | . . . . . . Drone Recoveries . | . . . . . . Exploration | -11 -10 -9 -8 -7 -7 ------------- Run | Jun Mat Mat Mat Fac DSF Turns Passed 887 | . 217 294 98 171 107 Spaces Moved 1133 | 1 137 239 246 369 141 Core 117 | . . . . . 117 Treads . | . . . . . . Legs 153 | 1 137 15 . . . Wheels 109 | . . 109 . . . Hover . | . . . . . . Flight 754 | . . 115 246 369 24 Fastest Speed 37 | 120 120 37 37 37 37 Average Speed 56 | 120 120 71 37 37 55 Slowest Speed 200 | 120 120 120 37 37 200 Overloaded Moves . | . . . . . . Propulsion Burnouts . | . . . . . . Robots Hopped 6 | . . 2 4 . . Cave-ins Triggered . | . . . . . . Exploration Rate (%) 32 | 2 30 29 32 13 91 Regions Visited 5 Branch Regions . Pre-discovered Areas . | . . . . . . Known Exits Taken 1 | . . . . 1 . Unknown Exits Taken 4 | 1 1 1 1 . . Scrap Searched . | . . . . . . Spaces Dug . | . . . . . . Terrain Destroyed 1 | . . . . . 1 Melee . | . . . . . . Projectile . | . . . . . . AOE 1 | . . . . . 1 Terrain Rammed . | . . . . . . Walls Destroyed . | . . . . . . Machines Disabled . | . . . . . . Actions | -11 -10 -9 -8 -7 -7 --------- Run | Jun Mat Mat Mat Fac DSF Total 1276 | . 155 303 248 403 167 Wait 28 | . . 2 . 26 . Move 1117 | . 136 234 238 368 141 Hop 6 | . . 2 4 . . Pick Up 14 | . 2 8 2 1 1 Fast Attach 15 | . . 2 1 3 9 Attach 11 | . . 5 1 . 5 Detach 3 | . . . . 1 2 Swap 1 | . . 1 . . . Drop 23 | . . 10 1 4 8 Fire 57 | . 17 39 . . 1 Melee . | . . . . . . Ram 1 | . . . 1 . . Kick . | . . . . . . Crush . | . . . . . . Escape Stasis . | . . . . . . Rewire . | . . . . . . Trap . | . . . . . . Miscellaneous . | . . . . . . Route ------- -11/Junkyard -10/Materials -9/Materials -8/Materials -7/Factory (discovered 3 exits: [*Fac x2] / DSF) -7/DSF (discovered 1 exit: [*Fac]) History --------- Turn | Location | Event 1 | -11/Junkyard | Discovered new exit (range 0) 1 | -11/Junkyard | Entered Materials 189 | -10/Materials | Discovered new exit (range 12) 218 | -10/Materials | Entered another Materials area 218 | -9/Materials | Evolved 2 slots: Utility x2 301 | -9/Materials | Build established: Mutant 442 | -9/Materials | Destroyed 8 combat bots 505 | -9/Materials | Discovered new exit (range 4) 512 | -9/Materials | Entered another Materials area 512 | -8/Materials | Evolved 2 slots: Utility x2 602 | -8/Materials | Discovered new exit (range 13) 610 | -8/Materials | Entered Factory 610 | -7/Factory | Evolved 2 slots: Utility x2 692 | -7/Factory | Repaired Flight Unit 703 | -7/Factory | Discovered new exit (range 12) 739 | -7/Factory | Hacking Suite fried by hacking feedback 771 | -7/Factory | Discovered new exit (range 12) 781 | -7/Factory | Identified exit to DSF 781 | -7/Factory | Entered DSF 797 | -7/DSF | Additional patrols routed to DSF 825 | -7/DSF | Core integrity fell below 50% 834 | -7/DSF | Discovered new exit (range 15) 851 | -7/DSF | Lost 5 parts (1n2u2w) 885 | -7/DSF | Core integrity fell below 20% 888 | -7/DSF | Destroyed by X-67 Chaingunner with Minigun Last Messages --------------- 00809_ System corrupted: Heat flow error (+297). 00809_ Acquired Imp. Core Shielding. 00817_ X-67 Chaingunner knocked back. 00819_ Assault Cannon destroyed. 00820_ Grenade Launcher destroyed. 00820_ Dropped Lgt. Deuterium Engine. 00821_ Dropped Flight Unit. 00821_ Dropped Sml. Storage Unit. 00822_ Dropped Imp. Core Shielding. 00823_ Penetrated by Slug. 00825_ Slug penetrates Wall. 00834_ EXIT=FOUND 00847_ Acquired 2 matter. 00866_ System corrupted: Energy discharge (-36). 00878_ Acquired Authchip [Device]. 00878_ Imp. Core Shielding destroyed. 00880_ Acquired Authchip [R/Combat]. 00882_ Acquired Authchip [Processor]. 00884_ Acquired Authchip [R/Combat]. 00888_ Authchip [R/Combat] destroyed. Map ----- +----------------------------------------------------+ | ????""""" !* """""????? | | ?????##"" ##[[#[[[### "##!! # !## ""###????? | | ??????### ###[[#[[[### ###!!!#!!### ###??????? | | ???????## ########## !!########## ##???????? | | ???????# #??????# !!#??????# #???????? | | ???????# #??????# !!#??????# #???????? | | ???????## ###??????## ##??????### ##???????? | | ???????#[ [[#??????#!!% !!#??????#!! !#???????? | | ???????#[ [[#?????##%! #??????#!! !#???????? | | ???????#[ [[#?????#"*!! !!#??????#!! !#???????? | | ??????### ###########=x a###?######## ###??????? | | ??????# ## #!!!##; ###***#!!!?# #??????? | | ??????# ## #!!!## ##***#!!!## #??????? | | ??????#!! !!#??????? | | ??????#!! !!#??????? | | ??????#!! !!#??????? | | ??????#!! ##!!!#!!!#"a ##!!!# ## !!#??????? | | ??????#!! ##!!!#!!!#"#Hxx###!!!# ## !!#??????? | | ??????#################x ###?######## ###??????? | | ????????????????????#!! [[#??????#[[ #???????? | | ????????????????????# [[#??????#[[ #???????? | | ????????????????????# [[#??????#[[ #???????? | | ????????????????????### ###??????### ##???????? | | ????????????????????# % #??????#[[ [#???????? | | ????????????????????# #??????#[[ [#???????? | | ????????????????????# @ ########## ##???????? | | ????????????????????### ### #[[### ###??????? | | ????????????????????### ### #[[## ""##?????? | | ????????????????????# """""????? | | ????????????????????# ""##"????? | | ????????????????????#[[ # #[[##"""""#??????? | | ????????????????????#[[ #########"""""#??????? | | ????????????????????#########???????##"####??????? | | ?????????????????????????????????????#"#?????????? | | ??????????????????????????????????????""?????????? | | ?????????????????????????????????????????????????? | | ?????????????????????????????????????????????????? | | ?????????????????????????????????????????????????? | | ?????????????????????????????????????????????????? | | ?????????????????????????????????????????????????? | | | | | | | | | | | | | | | | | | | | | +----------------------------------------------------+ Best States ------------- Heat Dissipation 34 Energy Generation 14 Energy Capacity 250 Matter Stores 300 Matter Capacity 300 Sight Range 16 Terrain Scan Density 210 Jamming Range 12 Core Shielding 30 Utility Shielding 66 Evasion (%) 70 Offensive Hacking 10 Defensive Hacking 10 Authchip Count 1 Item Schematics ----------------- None Robot Schematics ------------------ None Fabricated ------------ Nothing Alien Tech Used ----------------- None Achievements -------------- None Challenges ------------ None Game ------ Seed WeldingNodeCoupler Manual? 0 Play Time 00:12:45 Cumulative 108.0 hours Start 2023.12.10 @ 15:20:30 End 2023.12.10 @ 15:31:13 Sessions 1 Manual Loads 0 Difficulty Rogue Special Mode None Game No. 157 Rogue 157 Adventurer 0 Explorer 0 Win Type - Total 0 Types 0/0/0/0/0/0/0/0/0 Lore% 32 Gallery% 58 Achievement% 40 Wizard Run 0 Options --------- ASCII 0 Keyboard 0 Movement Mouse Keybinds 0 Fullscreen 2 Font 18/SmallcapsGlow Map View 76x50 Tactical HUD 1 Map Filters NONE Filters NONE Steam 1 RUN: aa74b0b7-9b50-4cb9-aaad-270c006c1bbb